bitfinex/quotes_BTCUSD_20251114
["timestamp","ask_amount","ask_price","bid_price","bid_amount"]
[1763093319489,0.20221833,98903.0,98902.0,0.02174]
[1763093319686,0.20223673,98894.0,98893.0,0.00045937]
[1763093320035,0.20221833,98903.0,98893.0,0.00045937]
[1763093320036,0.20222706,98899.0,98893.0,0.00045937]
[1763093320234,0.20223021,98898.0,98894.0,0.0411]
[1763093320432,0.2022306,98897.0,98894.0,0.0411]
[1763093320758,0.20223433,98896.0,98894.0,0.0411]
[1763093321737,0.20222354,98901.0,98894.0,0.0411]
[1763093321933,0.20223469,98895.0,98894.0,0.0411]
[1763093323048,0.20223469,98895.0,98893.0,0.00045937]
[1763093323249,0.20223469,98895.0,98894.0,0.0411]
[1763093323849,0.2022306,98897.0,98894.0,0.0411]
[1763093324050,0.20223469,98895.0,98894.0,0.0411]
[1763093328006,0.20222446,98900.0,98894.0,0.0411]
[1763093328227,0.20222831,98899.0,98894.0,0.0411]
[1763093328389,0.20222446,98900.0,98894.0,0.0411]
[1763093328390,0.20223008,98898.0,98894.0,0.0411]
[1763093328603,0.20223211,98897.0,98894.0,0.0411]
[1763093328802,0.20223008,98898.0,98894.0,0.0411]
[1763093329622,0.20222413,98901.0,98894.0,0.24333662]
[1763093329838,0.39939078,98920.0,98894.0,0.24333617]
[1763093330004,0.20220197,98911.0,98909.0,0.01108]
[1763093330441,0.20220197,98911.0,98909.0,0.05218]
[1763093330603,0.20220197,98911.0,98909.0,0.01108]
[1763093332424,0.20220197,98911.0,98910.0,0.0411]
[1763093336430,0.20220197,98911.0,98909.0,0.01108]
[1763093341723,0.20221424,98905.0,98904.0,0.01108]
[1763093343127,0.20221424,98905.0,98904.0,0.01208]
[1763093344535,0.20221424,98905.0,98904.0,0.05403]
[1763093345520,0.20221424,98905.0,98904.0,0.01308]
[1763093346195,0.20220185,98912.0,98904.0,0.01308]
[1763093346365,0.20221424,98905.0,98904.0,0.01308]
[1763093347869,0.20221424,98905.0,98904.0,0.01208]
[1763093348274,0.38911865,98914.0,98904.0,0.01208]
[1763093348462,0.20220839,98908.0,98905.0,0.04093]
[1763093348856,0.20221015,98907.0,98905.0,0.04093]
[1763093352812,0.20220402,98910.0,98905.0,0.04093]
[1763093353111,0.2022122,98906.0,98905.0,0.04093]
[1763093354303,0.2022122,98906.0,98904.0,0.01108]
[1763093357603,0.20221213,98907.0,98905.0,0.04093]
[1763093357775,0.20221424,98905.0,98904.0,0.01108]
[1763093359245,0.2022306,98897.0,98896.0,0.02174]
[1763093359452,0.20223673,98894.0,98893.0,0.00045937]
[1763093363375,0.22929673,98894.0,98893.0,0.00045937]
[1763093363825,0.20221281,98906.0,98902.0,0.04748]
[1763093364042,0.2022306,98897.0,98896.0,0.01678]
[1763093364252,0.2022306,98897.0,98893.0,0.00045937]
[1763093364253,0.20223673,98894.0,98893.0,0.00045937]
[1763093365062,0.22929673,98894.0,98893.0,0.00045937]
[1763093365826,0.20223673,98894.0,98893.0,0.00045937]
[1763093367253,0.20223673,98894.0,98893.0,0.04138937]
[1763093367876,0.20223673,98894.0,98893.0,0.00045937]
[1763093371950,0.01678,98914.0,98893.0,0.00045937]
[1763093372149,0.01588,98926.0,98902.0,0.02079]
[1763093372150,0.20221833,98903.0,98902.0,0.02079]
[1763093374565,0.20221564,98905.0,98903.0,0.04023]
[1763093375203,0.20221833,98903.0,98902.0,0.001]
[1763093376547,0.20222855,98898.0,98893.0,0.00045937]
[1763093376747,0.24643673,98894.0,98893.0,0.00045937]
[1763093378009,0.56943673,98894.0,98893.0,0.00045937]
[1763093378966,0.24643673,98894.0,98893.0,0.00045937]
[1763093379141,0.21951673,98894.0,98893.0,0.00045937]
[1763093379310,0.20223673,98894.0,98893.0,0.02124937]
[1763093380433,0.2022147,98905.0,98893.0,0.02124937]
[1763093380434,0.20222037,98902.0,98893.0,0.02124937]
[1763093380650,0.20221833,98903.0,98902.0,0.02703]
[1763093380855,0.20223469,98895.0,98894.0,0.04023]
[1763093381683,0.20223469,98895.0,98893.0,0.02124937]
[1763093381883,0.20223469,98895.0,98893.0,0.06147937]
[1763093383610,0.20223469,98895.0,98894.0,0.04023]
[1763093386702,0.20223469,98895.0,98893.0,0.02124937]
[1763093389606,0.20223469,98895.0,98894.0,0.04023]
[1763093390194,0.202233,98896.0,98894.0,0.04023]
[1763093392030,0.20223078,98898.0,98894.0,0.04023]
[1763093392246,0.2022326,98897.0,98894.0,0.04023]
[1763093392842,0.20223469,98895.0,98894.0,0.04023]
[1763093393951,0.20223429,98896.0,98894.0,0.04023]
[1763093400207,0.38922047,98904.0,98894.0,0.04023]
[1763093400208,0.40430796,98935.0,98894.0,0.04023]
[1763093400431,0.30283108,98918.0,98916.0,0.04436]
[1763093400656,0.20221629,98904.0,98903.0,0.01986]
[1763093403309,0.20221599,98905.0,98903.0,0.01986]
[1763093405317,0.20221599,98905.0,98903.0,0.05926]
[1763093406101,0.20221599,98905.0,98903.0,0.01986]
[1763093407843,0.20221386,98906.0,98903.0,0.01986]
[1763093408047,0.2022158,98905.0,98904.0,0.03739]
[1763093413976,0.20221386,98906.0,98904.0,0.03739]
[1763093414427,0.01010917,98920.0,98910.0,0.02]
[1763093414625,0.21229275,98920.0,98919.0,0.01821]
[1763093414787,0.21229275,98920.0,98919.0,0.04219]
[1763093415455,0.0485124,98920.0,98919.0,0.04219]
[1763093415871,0.05862157,98920.0,98919.0,0.04219]
[1763093420683,0.52516604,98929.0,98919.0,0.04219]
[1763093420684,0.01867,98941.0,98928.0,0.04219]
[1763093420812,0.01728,98953.0,98928.0,0.04219]
[1763093420813,0.01867,98958.0,98950.0,0.02]
[1763093421015,0.20211792,98953.0,98951.0,0.0556]
[1763093421253,0.20211792,98953.0,98952.0,0.03739]
[1763093421597,0.20211573,98954.0,98952.0,0.03739]
[1763093421951,0.2022318,98954.0,98952.0,0.03739]
[1763093422275,0.00011607,98954.0,98952.0,0.03739]
[1763093423668,0.00011607,98954.0,98952.0,0.03839]
[1763093424076,0.00011607,98954.0,98953.0,0.20211615]
[1763093425304,0.00011607,98954.0,98952.0,0.002]
[1763093425490,0.00011607,98954.0,98953.0,0.23950615]
[1763093425698,0.00011607,98954.0,98953.0,0.03739]
[1763093425963,0.00011607,98954.0,98952.0,0.001]
[1763093426122,0.00011607,98954.0,98953.0,0.001]
[1763093426488,0.00011607,98954.0,98953.0,0.03839]
[1763093427310,0.07872987,98954.0,98953.0,0.001]
[1763093427533,0.04318607,98954.0,98953.0,0.001]
[1763093427741,0.04318607,98954.0,98944.0,0.01821]
[1763093427743,0.20215292,98935.0,98924.0,0.03739]
[1763093427963,0.20216723,98928.0,98924.0,0.03739]
[1763093428179,0.20218358,98920.0,98919.0,0.01821]
[1763093428613,0.20218358,98920.0,98907.0,0.03036109]
[1763093428614,0.20222446,98900.0,98893.0,0.03739]
[1763093429260,0.20222446,98900.0,98899.0,0.01866937]
[1763093429468,0.20222446,98900.0,98899.0,0.00045937]
[1763093429880,0.20222446,98900.0,98899.0,0.00145937]
[1763093430121,0.20222446,98900.0,98899.0,0.00045937]
[1763093430716,0.20222446,98900.0,98899.0,0.00145937]
[1763093430959,0.20222446,98900.0,98899.0,0.00045937]
[1763093431596,0.20222037,98902.0,98899.0,0.03870937]
[1763093431902,0.20222385,98901.0,98899.0,0.03870937]
[1763093432039,0.20222385,98901.0,98899.0,0.03970937]
[1763093432455,0.01010917,98920.0,98910.0,0.02]
[1763093432694,0.21229479,98920.0,98919.0,0.01102]
[1763093432875,0.21229479,98920.0,98919.0,0.03711]
[1763093433705,0.21229479,98920.0,98919.0,0.01102]
[1763093435096,0.20219993,98912.0,98911.0,0.03825]
[1763093435321,0.20221424,98905.0,98904.0,0.01102]
[1763093435501,0.01010917,98920.0,98918.0,0.01925]
[1763093436141,0.20218562,98919.0,98918.0,0.01925]
[1763093436920,0.20220197,98911.0,98910.0,0.03825]
[1763093437941,0.20219932,98913.0,98910.0,0.03825]
[1763093438155,0.20219971,98913.0,98910.0,0.03825]
[1763093438366,0.20220197,98911.0,98910.0,0.03825]
[1763093439421,0.20220197,98911.0,98910.0,0.03925]
[1763093439631,0.2022122,98906.0,98905.0,0.03825]
[1763093439867,0.2022122,98906.0,98904.0,0.01102]
[1763093440350,0.20222446,98900.0,98899.0,0.00045937]
[1763093442443,0.20222446,98900.0,98899.0,0.00145937]
[1763093443936,0.20222187,98902.0,98900.0,0.03825]
[1763093444333,0.20222446,98900.0,98899.0,0.00145937]
[1763093444790,0.20222446,98900.0,98899.0,0.00045937]
[1763093445340,0.2022122,98906.0,98899.0,0.00045937]
[1763093445341,0.20221614,98905.0,98900.0,0.03825]
[1763093445574,0.20220702,98909.0,98908.0,0.01925]
[1763093446307,0.20220606,98909.0,98908.0,0.01925]
[1763093446618,0.20220606,98909.0,98908.0,0.0575]
[1763093447548,0.20220606,98909.0,98908.0,0.01925]
[1763093448004,0.20220592,98910.0,98908.0,0.02025]
[1763093448202,0.20220592,98910.0,98909.0,0.03825]
[1763093448752,0.20219986,98913.0,98909.0,0.03825]
[1763093448956,0.20219437,98915.0,98909.0,0.03825]
[1763093449163,0.20220021,98912.0,98909.0,0.03825]
[1763093449387,0.20220197,98911.0,98909.0,0.03925]
[1763093449819,0.20220197,98911.0,98909.0,0.03825]
[1763093452142,0.20220197,98911.0,98909.0,0.03925]
[1763093455015,0.20220402,98910.0,98909.0,0.03925]
[1763093456078,0.20220402,98910.0,98909.0,0.03825]
[1763093456286,0.20219584,98914.0,98909.0,0.03925]
[1763093456480,0.20220197,98911.0,98909.0,0.03925]
[1763093457639,0.20220197,98911.0,98909.0,0.03825]
[1763093457979,0.20218971,98917.0,98909.0,0.03825]
[1763093458184,0.20218576,98919.0,98918.0,0.04534]
[1763093458397,0.01010917,98920.0,98918.0,0.04534]
[1763093458596,0.01010815,98930.0,98927.0,0.04315]
[1763093458597,0.21227297,98930.0,98927.0,0.04315]
[1763093458811,0.21227297,98930.0,98929.0,0.0443]
[1763093459983,0.21227297,98930.0,98929.0,0.04443752]
[1763093460186,0.21227297,98930.0,98929.0,0.01834752]
[1763093460576,0.21227297,98930.0,98929.0,0.05507752]
[1763093460829,0.21227297,98930.0,98929.0,0.05607752]
[1763093460991,0.21227297,98930.0,98929.0,0.05707752]
[1763093461512,0.20215088,98936.0,98929.0,0.05707752]
[1763093461712,0.20216285,98931.0,98929.0,0.05707752]
[1763093461913,0.20216102,98932.0,98929.0,0.05707752]
[1763093462115,0.2021631,98931.0,98929.0,0.05707752]
[1763093462462,0.2021631,98931.0,98929.0,0.05607752]
[1763093462666,0.2021631,98931.0,98930.0,0.03673]
[1763093462870,0.01010713,98940.0,98938.0,0.01844]
[1763093463070,0.20214475,98939.0,98938.0,0.01844]
[1763093463284,0.20214475,98939.0,98938.0,0.05517]
[1763093464613,0.20214475,98939.0,98938.0,0.05617]
[1763093464831,0.20214475,98939.0,98938.0,0.05517]
[1763093465228,0.20214475,98939.0,98938.0,0.05617]
[1763093465429,0.20214475,98939.0,98938.0,0.05517]
[1763093465877,0.20214475,98939.0,98938.0,0.05617]
[1763093466296,0.22718475,98939.0,98938.0,0.001]
[1763093466501,0.29294791,98939.0,98938.0,0.001]
[1763093466672,0.22718475,98939.0,98938.0,0.001]
[1763093467084,0.20216314,98930.0,98929.0,0.01834752]
[1763093468165,0.20216282,98931.0,98929.0,0.05268752]
[1763093468382,0.20215718,98934.0,98929.0,0.05268752]
[1763093468608,0.01010713,98940.0,98939.0,0.04388]
[1763093468813,0.21224984,98940.0,98939.0,0.04388]
[1763093469250,0.21224984,98940.0,98929.0,0.01934752]
[1763093469251,0.2021611,98931.0,98929.0,0.01934752]
[1763093469660,0.20214475,98939.0,98938.0,0.02506]
[1763093470489,0.20212024,98951.0,98950.0,0.02]
[1763093470694,0.20212636,98948.0,98947.0,0.01772]
[1763093471031,0.20211773,98953.0,98947.0,0.01772]
[1763093471232,0.1006426,98957.0,98947.0,0.01772]
[1763093471432,0.20212432,98949.0,98948.0,0.03434]
[1763093471599,0.20212038,98951.0,98948.0,0.03434]
[1763093471804,0.01513,98970.0,98957.0,0.02506]
[1763093472024,0.01513,98970.0,98959.0,0.02506]
[1763093472025,0.2021039,98961.0,98959.0,0.02506]
[1763093473752,0.20211489,98954.0,98953.0,0.03434]
[1763093473975,0.20211489,98954.0,98953.0,0.03447752]
[1763093474376,0.20211615,98955.0,98953.0,0.03447752]
[1763093474923,0.1401826,98954.0,98953.0,0.00013752]
[1763093475146,0.1401826,98954.0,98953.0,0.00113752]
[1763093476011,0.1401826,98954.0,98953.0,0.00213752]
[1763093476232,0.1401826,98954.0,98953.0,0.00113752]
[1763093476854,0.1401826,98954.0,98953.0,0.00013752]
[1763093477064,0.18103005,98954.0,98953.0,0.00113752]
[1763093477381,0.1401826,98954.0,98953.0,0.00113752]
[1763093478805,0.1167026,98954.0,98953.0,0.00113752]
[1763093481515,0.20210431,98959.0,98954.0,0.03434]
[1763093481516,0.20210965,98957.0,98954.0,0.03434]
[1763093481720,0.20208568,98968.0,98954.0,0.03434]
[1763093481970,0.01513,98977.0,98954.0,0.03434]
[1763093481971,0.20211019,98956.0,98954.0,0.03434]
[1763093482315,0.20211201,98956.0,98954.0,0.03434]
[1763093482523,0.20210594,98958.0,98954.0,0.03434]
[1763093482733,0.20210953,98957.0,98954.0,0.03534]
[1763093483030,0.20211207,98955.0,98954.0,0.03434]
[1763093483525,0.20211207,98955.0,98954.0,0.03534]
[1763093483788,0.20210953,98957.0,98954.0,0.03434]
[1763093483998,0.2021114,98956.0,98954.0,0.03434]
[1763093484207,0.20210557,98959.0,98954.0,0.03634]
[1763093484427,0.20209314,98965.0,98954.0,0.03434]
[1763093484651,0.20207939,98971.0,98963.0,0.04388]
[1763093484860,0.20209369,98964.0,98963.0,0.01882]
[1763093485405,0.79402909,98980.0,98972.0,0.01882]
[1763093485408,0.01010305,98980.0,98972.0,0.01882]
[1763093485606,0.21216611,98980.0,98979.0,0.02506]
[1763093485831,0.20207531,98973.0,98972.0,0.01882]
[1763093487512,0.20207531,98973.0,98972.0,0.01982]
[1763093488627,0.20207279,98975.0,98972.0,0.01982]
[1763093488628,0.20206942,98976.0,98972.0,0.01982]
[1763093488855,0.20206942,98976.0,98973.0,0.03434]
[1763093489217,0.20207299,98975.0,98973.0,0.03434]
[1763093489623,0.20207326,98975.0,98973.0,0.03434]
[1763093489844,0.20206942,98976.0,98973.0,0.03434]
[1763093490143,0.20206486,98979.0,98973.0,0.03434]
[1763093490346,0.01010305,98980.0,98974.0,0.20207327]
[1763093490563,0.01010305,98980.0,98973.0,0.03434]
[1763093490738,0.20207099,98976.0,98973.0,0.03534]
[1763093490987,0.1006426,98989.0,98973.0,0.03534]
[1763093490988,0.20205895,98982.0,98974.0,0.20207327]
[1763093491196,0.20205895,98982.0,98975.0,0.20206947]
[1763093491404,0.2020649,98979.0,98975.0,0.03423]
[1763093491645,0.1006426,98989.0,98973.0,0.001]
[1763093491646,0.20204265,98989.0,98976.0,0.23629727]
[1763093491819,0.20204265,98989.0,98988.0,0.02252]
[1763093492224,0.2020651,98978.0,98977.0,0.03423]
[1763093493468,0.2020651,98978.0,98977.0,0.03523]
[1763093494086,0.2020651,98978.0,98977.0,0.03623]
[1763093494611,0.20204265,98989.0,98986.0,0.02252]
[1763093494736,0.20204469,98988.0,98979.0,0.20206267]
[1763093494934,0.0002,98990.0,98979.0,0.20206267]
[1763093494935,0.0002,98990.0,98989.0,0.02252]
[1763093495199,0.20224061,98990.0,98989.0,0.02252]
[1763093495608,0.0002,98990.0,98989.0,0.02252]
[1763093495955,0.0002,98990.0,98989.0,0.02352]
[1763093496695,0.0002,98990.0,98989.0,0.001]
[1763093496897,0.0002,98990.0,98988.0,0.20204457]
[1763093497264,0.0002,98990.0,98989.0,0.001]
[1763093497471,0.0002,98990.0,98989.0,0.03523]
[1763093498531,0.0002,98990.0,98989.0,0.03623]
[1763093498694,0.0002,98990.0,98989.0,0.03523]
[1763093499851,0.0002,98990.0,98989.0,0.03423]
[1763093500225,0.0002,98990.0,98989.0,0.03823]
[1763093501185,0.0002,98990.0,98989.0,0.24027265]
[1763093501391,0.0002,98990.0,98989.0,0.20604265]
[1763093502443,0.0002,98990.0,98989.0,0.004]
[1763093502639,0.0002,98990.0,98989.0,0.20604265]
[1763093503251,0.0002,98990.0,98989.0,0.004]
[1763093509906,0.0002,98990.0,98989.0,0.20604265]
[1763093510111,0.0002,98990.0,98989.0,0.004]
[1763093510515,0.0002,98990.0,98989.0,0.002]
[1763093510720,0.0002,98990.0,98989.0,0.004]
[1763093510921,0.0002,98990.0,98989.0,0.002]
[1763093511525,0.0002,98990.0,98989.0,0.001]
[1763093511769,0.20202415,98999.0,98997.0,0.0392]
[1763093511952,0.20216201,98999.0,98997.0,0.01668]
[1763093512157,0.20216201,98999.0,98998.0,0.03423]
[1763093514669,0.20216201,98999.0,98998.0,0.03623]
[1763093516950,0.20216201,98999.0,98998.0,0.002]
[1763093517811,0.20216201,98999.0,98998.0,0.001]
[1763093518032,0.20216201,98999.0,98997.0,0.01668]
[1763093518232,0.20216201,98999.0,98998.0,0.002]
[1763093518992,0.00013786,98999.0,98998.0,0.002]
[1763093519190,0.2021601,98999.0,98998.0,0.002]
[1763093519405,0.00013786,98999.0,98998.0,0.002]
[1763093519604,0.00013786,98999.0,98998.0,0.001]
[1763093520716,0.00013786,98999.0,98998.0,0.002]
[1763093522542,0.00013786,98999.0,98998.0,0.03777]
[1763093525450,0.30093835,99000.0,98998.0,0.03777]
[1763093525682,0.30093835,99000.0,98999.0,0.02298]
[1763093527044,0.30093835,99000.0,98999.0,0.02398]
[1763093527385,0.30093835,99000.0,98999.0,0.02498]
[1763093529657,0.30093835,99000.0,98999.0,0.002]
[1763093529658,0.09891685,99000.0,98999.0,0.002]
[1763093530574,0.09891685,99000.0,98999.0,0.001]
[1763093530809,0.20203448,98993.0,98992.0,0.01668]
[1763093531027,0.29433522,99000.0,98982.0,0.0499]
[1763093531028,0.20204469,98988.0,98982.0,0.0499]
[1763093531239,0.20204469,98988.0,98987.0,0.01700786]
[1763093532883,0.20204469,98988.0,98987.0,0.01800786]
[1763093533110,0.20204469,98988.0,98987.0,0.00313786]
[1763093534446,0.20204469,98988.0,98987.0,0.00013786]
[1763093534856,0.22484469,98988.0,98987.0,0.00113786]
[1763093535355,0.25518982,98988.0,98987.0,0.00113786]
[1763093535773,0.57818982,98988.0,98987.0,1e-08]
[1763093535942,0.57818982,98988.0,98956.0,0.01661]
[1763093535943,0.20210798,98957.0,98956.0,0.01661]
[1763093537588,0.20210798,98957.0,98956.0,0.01861]
[1763093537990,0.20210539,98959.0,98956.0,0.01861]
[1763093538196,0.3884014,98970.0,98965.0,0.03874]
[1763093538443,0.20209981,98961.0,98957.0,0.03322]
[1763093538593,0.20210594,98958.0,98957.0,0.03322]
[1763093539925,0.20210594,98958.0,98957.0,0.03422]
[1763093540925,0.20210594,98958.0,98957.0,0.001]
[1763093541435,0.20209503,98964.0,98957.0,0.001]
[1763093541603,0.20206714,98977.0,98976.0,0.03874]
[1763093541749,0.2121314,98977.0,98976.0,0.03874]
[1763093542147,0.2121314,98977.0,98976.0,0.01661]
[1763093543477,0.20207939,98971.0,98970.0,0.03322]
[1763093543688,0.2121314,98977.0,98956.0,0.01661]
[1763093543689,0.20210177,98961.0,98956.0,0.01661]
[1763093543904,0.2020896,98966.0,98965.0,0.01661]
[1763093545891,0.2020896,98966.0,98965.0,0.01761]
[1763093546068,0.2020896,98966.0,98965.0,0.01861]
[1763093547226,0.65391292,98980.0,98965.0,0.01861]
[1763093547227,0.20207322,98975.0,98974.0,0.03874]
[1763093547481,0.20207322,98975.0,98974.0,0.01661]
[1763093549316,0.20205863,98982.0,98975.0,0.03322]
[1763093549667,0.20204636,98988.0,98983.0,0.03874]
[1763093549872,0.01010203,98990.0,98989.0,0.02213]
[1763093550051,0.01010203,98990.0,98983.0,0.01661]
[1763093550052,0.01010203,98990.0,98984.0,0.03322]
[1763093550282,0.20204502,98988.0,98984.0,0.03322]
[1763093550774,0.21214451,98990.0,98984.0,0.03322]
[1763093551275,0.20204964,98986.0,98984.0,0.03322]
[1763093551631,0.20204673,98987.0,98984.0,0.03322]
[1763093551632,0.20204737,98987.0,98984.0,0.03322]
[1763093551848,0.20203141,98995.0,98993.0,0.04073]
[1763093552050,0.20216906,98995.0,98993.0,0.04073]
[1763093552513,0.20216906,98995.0,98993.0,0.07392]
[1763093552637,0.20216906,98995.0,98993.0,0.04073]
[1763093552842,0.20216906,98995.0,98994.0,0.03319]
[1763093553044,0.00013765,98995.0,98994.0,0.05626]
[1763093553667,0.20216906,98995.0,98994.0,0.05626]
[1763093554077,0.00013765,98995.0,98994.0,0.05626]
[1763093554278,0.20216805,98995.0,98994.0,0.05726]
[1763093554486,0.00013765,98995.0,98994.0,0.02407]
[1763093554685,0.00013765,98995.0,98994.0,0.03519]
[1763093559757,0.20216805,98995.0,98994.0,0.03519]
[1763093562753,0.00013765,98995.0,98994.0,0.03519]
[1763093565067,0.00013765,98995.0,98994.0,0.03319]
[1763093565267,0.20216805,98995.0,98994.0,0.03319]
[1763093565465,0.20216805,98995.0,98994.0,0.03519]
[1763093566844,0.00013765,98995.0,98994.0,0.03519]
[1763093567043,0.00013765,98995.0,98994.0,0.23722244]
[1763093567530,0.00013765,98995.0,98994.0,0.20403244]
[1763093567846,0.00013765,98995.0,98994.0,0.002]
[1763093567991,0.20216805,98995.0,98994.0,0.002]
[1763093568954,0.00013765,98995.0,98994.0,0.002]
[1763093578413,0.00013765,98995.0,98994.0,0.325]
[1763093583579,0.00013765,98995.0,98994.0,0.324]
[1763093583985,0.00013765,98995.0,98994.0,0.323]
[1763093584574,0.00113765,98995.0,98994.0,0.323]
[1763093584783,0.09891685,99000.0,98999.0,0.52502224]
[1763093584784,0.09628658,99000.0,98999.0,0.52502224]
[1763093584993,0.09633293,99000.0,98999.0,0.52502224]
[1763093586030,0.10133293,99000.0,98999.0,0.52502224]
[1763093586558,0.09633293,99000.0,98999.0,0.52502224]
[1763093586801,0.10133293,99000.0,98999.0,0.52502224]
[1763093587121,0.10133293,99000.0,98999.0,0.56844098]
[1763093588043,0.09654143,99000.0,98999.0,0.58973098]
[1763093588232,0.0002,99010.0,99009.0,0.52500183]
[1763093588787,0.0002,99010.0,99009.0,0.52904516]
[1763093589278,0.0002,99010.0,99009.0,0.5724639]
[1763093590014,0.0052,99010.0,99009.0,0.5724639]
[1763093590596,0.00524588,99010.0,99009.0,0.5724639]
[1763093599598,0.00524588,99010.0,99009.0,0.52904516]
[1763093600671,0.00524588,99010.0,99008.0,0.01613]
[1763093600672,0.20724567,99010.0,99008.0,0.01613]
[1763093600873,0.20724567,99010.0,99009.0,0.03297]
[1763093600874,0.00524588,99010.0,99009.0,0.03297]
[1763093601081,0.20724567,99010.0,99009.0,0.03297]
[1763093601463,0.20224567,99010.0,99009.0,0.03297]
[1763093601853,0.00524588,99010.0,99009.0,0.03297]
[1763093602255,0.00024588,99010.0,99009.0,0.03297]
[1763093602694,0.00024588,99010.0,99009.0,0.03597]
[1763093604940,0.00024588,99010.0,99009.0,0.03497]
[1763093605149,0.00024588,99010.0,99009.0,0.002]
[1763093605356,0.00024588,99010.0,99009.0,0.004]
[1763093605841,0.00024588,99010.0,99009.0,0.002]
[1763093606020,0.20200183,99009.0,99008.0,0.01613]
[1763093606228,0.20201612,99002.0,99001.0,0.01613]
[1763093607439,0.20201612,99002.0,99001.0,0.01813]
[1763093607653,0.20200183,99009.0,99001.0,0.01813]
[1763093607938,0.20200556,99008.0,99002.0,0.03297]
[1763093608550,0.20224607,99010.0,99002.0,0.2349843]
[1763093608951,0.00024588,99010.0,99002.0,0.03297]
[1763093609206,0.20224589,99010.0,99003.0,0.23498213]
[1763093609432,0.20200315,99009.0,99004.0,0.20201203]
[1763093609644,0.00024588,99010.0,99004.0,0.23498203]
[1763093609849,0.00024588,99010.0,99005.0,0.23497825]
[1763093610278,0.00024588,99010.0,99006.0,0.0308]
[1763093610679,0.00024588,99010.0,99006.0,0.23280632]
[1763093611034,0.00024588,99010.0,99008.0,0.20200387]
[1763093611372,0.00024588,99010.0,99007.0,0.0308]
[1763093612023,0.20200365,99009.0,99007.0,0.0308]
[1763093612614,0.20200365,99009.0,99007.0,0.0328]
[1763093612978,0.00024588,99010.0,99007.0,0.23480395]
[1763093613195,0.00024588,99010.0,99007.0,0.23280395]
[1763093613599,0.00024588,99010.0,99008.0,0.23280215]
[1763093614028,0.00024588,99010.0,99009.0,0.04676]
[1763093614489,0.00024588,99010.0,99009.0,0.21796183]
[1763093615712,0.00024588,99010.0,99009.0,0.21996183]
[1763093616851,0.00024588,99010.0,99009.0,0.22096183]
[1763093617998,0.00024588,99010.0,99009.0,0.21996183]
[1763093618158,0.00024588,99010.0,99009.0,0.21796183]
[1763093618503,0.00024588,99010.0,99009.0,0.01796]
[1763093618708,0.20199823,99011.0,99010.0,0.0308]
[1763093620027,0.18276905,99016.0,99010.0,0.0318]
[1763093620205,0.20198347,99018.0,99012.0,0.20199542]
[1763093620414,4.588e-05,99018.0,99014.0,0.20199062]
[1763093620837,4.588e-05,99018.0,99015.0,0.0308]
[1763093621357,4.588e-05,99018.0,99016.0,0.01596]
[1763093621942,0.20198551,99017.0,99016.0,0.01596]
[1763093622519,0.23215112,99017.0,99015.0,0.001]
[1763093622719,0.2019974,99012.0,99009.0,0.01596]
[1763093623127,0.20199775,99011.0,99009.0,0.01596]
[1763093623976,0.20199775,99011.0,99009.0,0.01696]
[1763093624220,0.03605,99010.0,99009.0,0.001]
[1763093624452,0.20201612,99002.0,99001.0,0.01613]
[1763093625623,0.20201612,99002.0,99001.0,0.01813]
[1763093626958,0.20201612,99002.0,99001.0,0.002]
[1763093627192,0.22375612,99002.0,99001.0,0.004]
[1763093627967,0.22375612,99002.0,99001.0,0.002]
[1763093628167,0.26552364,99002.0,99001.0,0.003]
[1763093628997,0.26552364,99002.0,99001.0,0.001]
[1763093629300,0.26552364,99002.0,99001.0,0.002]
[1763093629718,0.22375612,99002.0,99001.0,0.002]
[1763093632929,0.20201612,99002.0,99001.0,0.002]
[1763093638062,0.20201612,99002.0,99001.0,0.01796]
[1763093638499,0.20201612,99002.0,99001.0,0.002]
[1763093638720,0.22375612,99002.0,99001.0,0.002]
[1763093640077,0.20201612,99002.0,99001.0,0.002]
[1763093645019,0.22477612,99002.0,99001.0,0.002]
[1763093646551,0.20201612,99002.0,99001.0,0.002]
[1763093653041,0.20201364,99004.0,99002.0,0.03303]
[1763093653243,0.20201364,99004.0,99002.0,0.04905]
[1763093653613,0.20201364,99004.0,99003.0,0.03303]
[1763093654416,0.20201364,99004.0,99002.0,0.01702]
[1763093654417,0.22343364,99004.0,99002.0,0.002]
[1763093654597,0.32407872,99003.0,98988.0,0.01602]
[1763093654812,0.20204265,98989.0,98988.0,0.01602]
[1763093655232,0.20204265,98989.0,98988.0,0.04905]
[1763093655660,0.20204265,98989.0,98988.0,0.01602]
[1763093655859,0.20204265,98989.0,98988.0,0.01702]
[1763093656064,0.20204265,98989.0,98988.0,0.05005]
[1763093656412,0.20204265,98989.0,98988.0,0.01702]
[1763093656810,0.20204265,98989.0,98988.0,0.01602]
[1763093657213,0.20204265,98989.0,98988.0,0.01702]
[1763093657658,0.20204265,98989.0,98988.0,0.01802]
[1763093658023,0.01029896,99020.0,98997.0,0.03692]
[1763093658224,0.20201004,99005.0,99003.0,0.01602]
[1763093658678,0.20201004,99005.0,99004.0,0.03303]
[1763093659502,0.20199743,99012.0,99004.0,0.03303]
[1763093659711,0.20198749,99017.0,99004.0,0.23504042]
[1763093659832,4.588e-05,99018.0,99004.0,0.23504042]
[1763093660033,4.588e-05,99018.0,99005.0,0.03303]
[1763093660254,0.20200302,99009.0,99005.0,0.03303]
[1763093660454,0.20199785,99011.0,99005.0,0.03303]
[1763093660718,0.20199785,99011.0,99005.0,0.23503967]
[1763093660934,0.03143,99017.0,99001.0,0.01602]
[1763093661149,0.20201612,99002.0,99001.0,0.01602]
[1763093661551,0.20201583,99003.0,99001.0,0.01602]
[1763093661693,0.20201583,99003.0,99001.0,0.04905]
[1763093662263,0.20201583,99003.0,99002.0,0.03303]
[1763093662741,0.2020081,99006.0,99002.0,0.03303]
[1763093662930,0.2020081,99006.0,99005.0,0.001]
[1763093663279,0.2020081,99006.0,99001.0,0.21803812]
[1763093663478,0.2020081,99006.0,99002.0,0.001]
[1763093663798,0.2020081,99006.0,99001.0,0.21903812]
[1763093664001,0.20200377,99009.0,99002.0,0.03303]
[1763093664205,0.20200377,99009.0,99005.0,0.001]
[1763093664528,0.20200795,99006.0,99002.0,0.03303]
[1763093664735,0.20200795,99006.0,99002.0,0.03503]
[1763093665184,0.20201174,99005.0,99002.0,0.03403]
[1763093665969,0.20201174,99005.0,99002.0,0.03303]